[Event "Live Chess"]
[Site "Chess.com"]
[Date "2024.06.02"]
[Round "-"]
[White "upoe610"]
[Black "juniortay"]
[Result "0-1"]
[WhiteElo "2121"]
[BlackElo "2343"]
[TimeControl "300"]
[EndTime "5:39:32 PDT"]
[Termination "juniortay won by resignation"]

1. e4 {[%clk 0:04:58.5]} 1... e5 {[%clk 0:04:59]} 2. Nf3 {[%clk 0:04:57.6]} 2...
Nf6 {[%clk 0:04:58.6]} 3. Bc4 {[%clk 0:04:55.8]} 3... Nxe4 {[%clk 0:04:57.1]} 4.
Nc3 {[%clk 0:04:54.2]} 4... Nxc3 {[%clk 0:04:56]} 5. dxc3 {[%clk 0:04:54.1]}
5... f6 {[%clk 0:04:55.7]} 6. Nh4 {[%clk 0:04:52.4]} 6... g6 {[%clk 0:04:55]} 7.
f4 {[%clk 0:04:50.3]} 7... Qe7 {[%clk 0:04:54.3]} 8. f5 {[%clk 0:04:49.7]} 8...
Qg7 {[%clk 0:04:53.5]} 9. Qg4 {[%clk 0:04:42.1]} 9... c6 {[%clk 0:04:49.9]} 10.
fxg6 {[%clk 0:04:39.8]} 10... hxg6 {[%clk 0:04:46.4]} 11. Qxg6+ {[%clk
0:04:36.7]} 11... Kd8 {[%clk 0:04:40]} 12. Qxg7 {[%clk 0:04:33.3]} 12... Bxg7
{[%clk 0:04:38.9]} 13. Nf5 {[%clk 0:04:33]} 13... Bf8 {[%clk 0:04:37.6]} 14. Bd3
{[%clk 0:04:31.4]} 14... d5 {[%clk 0:04:36.4]} 15. g4 {[%clk 0:04:26.2]} 15...
e4 {[%clk 0:04:33.5]} 16. Be2 {[%clk 0:04:24.7]} 16... Bxf5 {[%clk 0:04:30.8]}
17. gxf5 {[%clk 0:04:23.4]} 17... Bd6 {[%clk 0:04:30.2]} 18. h3 {[%clk
0:04:21.3]} 18... Bg3+ {[%clk 0:04:27.2]} 19. Kf1 {[%clk 0:04:19.7]} 19... Nd7
{[%clk 0:04:27.1]} 20. Bg4 {[%clk 0:04:18.8]} 20... Ne5 {[%clk 0:04:26]} 21. Kg2
{[%clk 0:04:18.2]} 21... Bh4 {[%clk 0:04:25.4]} 22. Bf4 {[%clk 0:04:15.7]} 22...
Kc7 {[%clk 0:04:24.2]} 23. Bxe5+ {[%clk 0:04:13.6]} 23... fxe5 {[%clk
0:04:23.3]} 24. Raf1 {[%clk 0:04:13]} 24... Raf8 {[%clk 0:04:15.7]} 25. c4
{[%clk 0:04:07.6]} 25... d4 {[%clk 0:04:14.3]} 26. c3 {[%clk 0:03:44]} 26... d3
{[%clk 0:04:12.1]} 27. Rd1 {[%clk 0:03:34.4]} 27... Rd8 {[%clk 0:04:05.4]} 28.
c5 {[%clk 0:03:27.3]} 28... e3 {[%clk 0:04:03.1]} 29. f6 {[%clk 0:03:20.1]}
29... Bxf6 {[%clk 0:03:58.8]} 30. Rhe1 {[%clk 0:03:17.8]} 30... Bg5 {[%clk
0:03:52.3]} 31. Kf3 {[%clk 0:03:14.8]} 31... e2 {[%clk 0:03:45]} 32. Rb1 {[%clk
0:03:12.3]} 32... d2 {[%clk 0:03:39.8]} 33. Kxe2 {[%clk 0:03:04.8]} 33...
dxe1=Q+ {[%clk 0:03:37.3]} 34. Rxe1 {[%clk 0:03:04.7]} 34... Rd2+ {[%clk
0:03:35.7]} 35. Kf3 {[%clk 0:03:04.1]} 0-1

[Event "Live Chess"]
[Site "Chess.com"]
[Date "2024.06.02"]
[Round "-"]
[White "RuslanChessN"]
[Black "elephantgerrald"]
[Result "1-0"]
[WhiteElo "1947"]
[BlackElo "871"]
[TimeControl "300"]
[EndTime "5:39:42 PDT"]
[Termination "RuslanChessN won by checkmate"]

1. d4 {[%clk 0:04:56.2]} 1... d5 {[%clk 0:04:58.3]} 2. c4 {[%clk 0:04:54.6]}
2... dxc4 {[%clk 0:04:56.3]} 3. Nc3 {[%clk 0:04:53.4]} 3... e5 {[%clk
0:04:54.3]} 4. d5 {[%clk 0:04:51.6]} 4... c6 {[%clk 0:04:52.3]} 5. e4 {[%clk
0:04:50.8]} 5... cxd5 {[%clk 0:04:50.2]} 6. exd5 {[%clk 0:04:50.7]} 6... Nf6
{[%clk 0:04:48.2]} 7. Bxc4 {[%clk 0:04:49.5]} 7... Bc5 {[%clk 0:04:36.8]} 8. Nf3
{[%clk 0:04:45.1]} 8... O-O {[%clk 0:04:34]} 9. O-O {[%clk 0:04:42.8]} 9... b6
{[%clk 0:04:21.1]} 10. Bg5 {[%clk 0:04:40.3]} 10... Bf5 {[%clk 0:04:12.3]} 11.
Nxe5 {[%clk 0:04:36.4]} 11... Bd6 {[%clk 0:03:58.8]} 12. f4 {[%clk 0:04:27.6]}
12... Bxe5 {[%clk 0:03:51.9]} 13. fxe5 {[%clk 0:04:25.3]} 13... Bg4 {[%clk
0:03:48.3]} 14. Bxf6 {[%clk 0:04:19.1]} 14... Bxd1 {[%clk 0:03:33.6]} 15. Bxd8
{[%clk 0:04:17.1]} 15... Rxd8 {[%clk 0:03:31.6]} 16. Raxd1 {[%clk 0:04:15.6]}
16... Re8 {[%clk 0:03:29.6]} 17. Rde1 {[%clk 0:04:03.5]} 17... h6 {[%clk
0:03:22.8]} 18. d6 {[%clk 0:04:01.4]} 18... Nd7 {[%clk 0:03:20.9]} 19. Bxf7+
{[%clk 0:03:58.9]} 19... Kh7 {[%clk 0:03:18.5]} 20. Bxe8 {[%clk 0:03:57.6]}
20... Rxe8 {[%clk 0:03:18.4]} 21. e6 {[%clk 0:03:54.1]} 21... Nc5 {[%clk
0:03:09.6]} 22. d7 {[%clk 0:03:51.3]} 22... Nxe6 {[%clk 0:03:04.9]} 23. dxe8=Q
{[%clk 0:03:47.2]} 23... Nf4 {[%clk 0:03:04.8]} 24. Rxf4 {[%clk 0:03:43.6]}
24... b5 {[%clk 0:03:00.8]} 25. Re7 {[%clk 0:03:40.7]} 25... a5 {[%clk
0:03:00.7]} 26. Qf7 {[%clk 0:03:38.9]} 26... b4 {[%clk 0:02:53.3]} 27. Qxg7#
{[%clk 0:03:37.5]} 1-0

[Event "Live Chess"]
[Site "Chess.com"]
[Date "2024.06.02"]
[Round "-"]
[White "Pablo_dmp"]
[Black "BishopofWells"]
[Result "1-0"]
[WhiteElo "2006"]
[BlackElo "1535"]
[TimeControl "300"]
[EndTime "5:39:49 PDT"]
[Termination "Pablo_dmp won by resignation"]

1. e4 {[%clk 0:04:59.8]} 1... e6 {[%clk 0:04:57.9]} 2. Nc3 {[%clk 0:04:58.2]}
2... d5 {[%clk 0:04:52.1]} 3. Nf3 {[%clk 0:04:58.1]} 3... d4 {[%clk 0:04:43.2]}
4. Ne2 {[%clk 0:04:56.6]} 4... c5 {[%clk 0:04:41.3]} 5. c3 {[%clk 0:04:56]} 5...
Nc6 {[%clk 0:04:39.9]} 6. cxd4 {[%clk 0:04:54.6]} 6... cxd4 {[%clk 0:04:38.6]}
7. Qa4 {[%clk 0:04:53.9]} 7... e5 {[%clk 0:04:37.2]} 8. Nxe5 {[%clk 0:04:52.8]}
8... Bd7 {[%clk 0:04:30.7]} 9. Nxd7 {[%clk 0:04:52]} 9... Qxd7 {[%clk
0:04:29.8]} 10. b3 {[%clk 0:04:48.6]} 10... Nge7 {[%clk 0:04:19.8]} 11. Bb2
{[%clk 0:04:47.6]} 11... Rd8 {[%clk 0:04:10.9]} 12. Rc1 {[%clk 0:04:44.3]} 12...
g6 {[%clk 0:04:08]} 13. g3 {[%clk 0:04:42.9]} 13... Bg7 {[%clk 0:04:06.5]} 14.
Bg2 {[%clk 0:04:41.1]} 14... O-O {[%clk 0:04:04.4]} 15. d3 {[%clk 0:04:24]}
15... a6 {[%clk 0:03:58.3]} 16. O-O {[%clk 0:04:18.8]} 16... Ne5 {[%clk
0:03:41.8]} 17. Bxd4 {[%clk 0:04:09.3]} 17... Qxa4 {[%clk 0:03:35.5]} 18. bxa4
{[%clk 0:04:07.3]} 18... Nxd3 {[%clk 0:03:34.2]} 19. Bxg7 {[%clk 0:04:05.3]}
19... Kxg7 {[%clk 0:03:32.3]} 20. Rc7 {[%clk 0:04:03.6]} 20... Nc6 {[%clk
0:03:08.2]} 21. Rxb7 {[%clk 0:03:40.4]} 21... Nc5 {[%clk 0:02:52.5]} 22. Rc7
{[%clk 0:03:38.5]} 22... Rc8 {[%clk 0:02:51.7]} 23. Rxc8 {[%clk 0:03:34.5]}
23... Rxc8 {[%clk 0:02:49.2]} 24. Rc1 {[%clk 0:03:34.4]} 24... Nxa4 {[%clk
0:02:45.1]} 25. e5 {[%clk 0:03:32.5]} 25... Ne7 {[%clk 0:02:42.4]} 26. Rxc8
{[%clk 0:03:25.4]} 26... Nxc8 {[%clk 0:02:40.4]} 27. f4 {[%clk 0:03:25.3]} 27...
Nc5 {[%clk 0:02:32.6]} 28. Nd4 {[%clk 0:03:23.9]} 28... Ne7 {[%clk 0:02:26.6]}
29. Bf1 {[%clk 0:03:20.2]} 29... Kf8 {[%clk 0:02:16.6]} 30. Nb3 {[%clk
0:03:19.2]} 30... Nxb3 {[%clk 0:02:08.7]} 31. axb3 {[%clk 0:03:19.1]} 31... a5
{[%clk 0:02:07.7]} 32. Kf2 {[%clk 0:03:17.9]} 32... Ke8 {[%clk 0:02:07]} 33. Ke3
{[%clk 0:03:16.3]} 33... Kd7 {[%clk 0:02:05.4]} 34. Kd4 {[%clk 0:03:15.6]} 34...
Kc6 {[%clk 0:02:00.2]} 35. Kc4 {[%clk 0:03:14.2]} 35... Kb6 {[%clk 0:01:56.8]}
36. h3 {[%clk 0:03:10]} 36... h5 {[%clk 0:01:54.4]} 37. Be2 {[%clk 0:03:06.7]}
37... Kc6 {[%clk 0:01:43.9]} 38. g4 {[%clk 0:03:05]} 38... hxg4 {[%clk
0:01:41.3]} 39. hxg4 {[%clk 0:03:04.9]} 39... Kb6 {[%clk 0:01:38.7]} 40. Bd3
{[%clk 0:03:01.3]} 40... Kc6 {[%clk 0:01:29]} 41. Be4+ {[%clk 0:03:00.5]} 41...
Kb6 {[%clk 0:01:27]} 42. f5 {[%clk 0:02:49.7]} 42... gxf5 {[%clk 0:01:19]} 43.
gxf5 {[%clk 0:02:49.6]} 43... Nc8 {[%clk 0:01:03.7]} 44. Bd5 {[%clk 0:02:46.2]}
44... f6 {[%clk 0:00:54.1]} 45. exf6 {[%clk 0:02:46.1]} 45... Nd6+ {[%clk
0:00:52.4]} 46. Kd3 {[%clk 0:02:42.7]} 46... Kc7 {[%clk 0:00:42.3]} 47. f7
{[%clk 0:02:41.4]} 1-0

[Event "Live Chess"]
[Site "Chess.com"]
[Date "2024.06.02"]
[Round "-"]
[White "Tatarinov_Maxim"]
[Black "PETROMICH1967"]
[Result "1-0"]
[WhiteElo "2289"]
[BlackElo "1352"]
[TimeControl "300"]
[EndTime "5:39:58 PDT"]
[Termination "Tatarinov_Maxim won by resignation"]

1. d4 {[%clk 0:04:56.4]} 1... Nf6 {[%clk 0:04:55.6]} 2. c4 {[%clk 0:04:55.3]}
2... g6 {[%clk 0:04:52.8]} 3. Nc3 {[%clk 0:04:54.8]} 3... Bg7 {[%clk 0:04:52]}
4. Nf3 {[%clk 0:04:54.2]} 4... d6 {[%clk 0:04:51.4]} 5. g3 {[%clk 0:04:53.7]}
5... O-O {[%clk 0:04:50.2]} 6. Bg2 {[%clk 0:04:53.3]} 6... Nbd7 {[%clk
0:04:48.9]} 7. O-O {[%clk 0:04:52.9]} 7... c5 {[%clk 0:04:46.2]} 8. d5 {[%clk
0:04:51.1]} 8... a6 {[%clk 0:04:43.9]} 9. a4 {[%clk 0:04:49.1]} 9... Re8 {[%clk
0:04:40.5]} 10. h3 {[%clk 0:04:48.4]} 10... h5 {[%clk 0:04:37.9]} 11. e4 {[%clk
0:04:47.2]} 11... Nf8 {[%clk 0:04:30.9]} 12. Be3 {[%clk 0:04:45.9]} 12... N6h7
{[%clk 0:04:27.4]} 13. Qc2 {[%clk 0:04:43.3]} 13... e5 {[%clk 0:04:26]} 14. dxe6
{[%clk 0:04:38.7]} 14... Nxe6 {[%clk 0:04:24.4]} 15. Rad1 {[%clk 0:04:35.7]}
15... Nd4 {[%clk 0:04:21.3]} 16. Nxd4 {[%clk 0:04:33.5]} 16... cxd4 {[%clk
0:04:19.9]} 17. Bxd4 {[%clk 0:04:32.9]} 17... Bxd4 {[%clk 0:04:18.6]} 18. Rxd4
{[%clk 0:04:32.8]} 18... Qf6 {[%clk 0:04:16.6]} 19. Rfd1 {[%clk 0:04:30.2]}
19... Ng5 {[%clk 0:03:58.3]} 20. Rxd6 {[%clk 0:04:22.6]} 20... Be6 {[%clk
0:03:45.7]} 21. h4 {[%clk 0:04:11.7]} 21... Nf3+ {[%clk 0:03:41.3]} 22. Kh1
{[%clk 0:04:01.5]} 22... Rac8 {[%clk 0:03:18.2]} 23. Nd5 {[%clk 0:03:56.7]}
23... Qe5 {[%clk 0:02:44.5]} 24. Bxf3 {[%clk 0:03:53.8]} 24... Bxd5 {[%clk
0:02:32.6]} 25. R6xd5 {[%clk 0:03:47.8]} 25... Qg7 {[%clk 0:02:20.5]} 26. Kg2
{[%clk 0:03:46.4]} 26... b5 {[%clk 0:02:17.4]} 27. axb5 {[%clk 0:03:44.1]} 27...
axb5 {[%clk 0:02:16]} 28. Rxb5 {[%clk 0:03:43.3]} 28... Rc7 {[%clk 0:02:10.2]}
29. b3 {[%clk 0:03:39]} 29... Rec8 {[%clk 0:02:09.3]} 30. Rbd5 {[%clk
0:03:33.1]} 30... Qf6 {[%clk 0:01:58.6]} 31. e5 {[%clk 0:03:30.3]} 31... Qb6
{[%clk 0:01:57.4]} 32. Rd8+ {[%clk 0:03:24.4]} 32... Kg7 {[%clk 0:01:53.3]} 33.
Qc3 {[%clk 0:03:10.1]} 33... Rxd8 {[%clk 0:01:48.4]} 34. Rxd8 {[%clk 0:03:05.9]}
34... Qe6 {[%clk 0:01:44.2]} 35. Bd5 {[%clk 0:03:01.5]} 35... Qf5 {[%clk
0:01:41.9]} 36. e6+ {[%clk 0:02:59.8]} 36... Qf6 {[%clk 0:01:39]} 37. Rg8+
{[%clk 0:02:57.6]} 37... Kxg8 {[%clk 0:01:33.3]} 38. Qxf6 {[%clk 0:02:57.5]} 1-0

[Event "Live Chess"]
[Site "Chess.com"]
[Date "2024.06.02"]
[Round "-"]
[White "stevochess11"]
[Black "IgorSchukin"]
[Result "0-1"]
[WhiteElo "1682"]
[BlackElo "1776"]
[TimeControl "300"]
[EndTime "5:40:07 PDT"]
[Termination "IgorSchukin won by resignation"]

1. d4 {[%clk 0:04:58.4]} 1... d5 {[%clk 0:04:54.8]} 2. Nf3 {[%clk 0:04:57.3]}
2... Nf6 {[%clk 0:04:54.1]} 3. e3 {[%clk 0:04:56.1]} 3... g6 {[%clk 0:04:53.6]}
4. Bd3 {[%clk 0:04:54.4]} 4... Bg7 {[%clk 0:04:53.2]} 5. O-O {[%clk 0:04:53.5]}
5... O-O {[%clk 0:04:52.8]} 6. Nbd2 {[%clk 0:04:52.7]} 6... b6 {[%clk
0:04:52.3]} 7. c3 {[%clk 0:04:52]} 7... Ba6 {[%clk 0:04:51.7]} 8. Bxa6 {[%clk
0:04:48.8]} 8... Nxa6 {[%clk 0:04:51.2]} 9. e4 {[%clk 0:04:48.1]} 9... Nxe4
{[%clk 0:04:49.1]} 10. Nxe4 {[%clk 0:04:47.2]} 10... dxe4 {[%clk 0:04:48.7]} 11.
Ng5 {[%clk 0:04:43.7]} 11... c5 {[%clk 0:04:41.6]} 12. Nxe4 {[%clk 0:04:40.1]}
12... cxd4 {[%clk 0:04:40.4]} 13. cxd4 {[%clk 0:04:39.1]} 13... Qxd4 {[%clk
0:04:38.3]} 14. Qxd4 {[%clk 0:04:36.1]} 14... Bxd4 {[%clk 0:04:37.3]} 15. Rd1
{[%clk 0:04:32.1]} 15... Rfd8 {[%clk 0:04:35.1]} 16. Bg5 {[%clk 0:04:24.6]}
16... f6 {[%clk 0:04:31.1]} 17. Bf4 {[%clk 0:04:15.4]} 17... Bxb2 {[%clk
0:04:24.5]} 18. Rxd8+ {[%clk 0:04:13.6]} 18... Rxd8 {[%clk 0:04:22.1]} 19. Rb1
{[%clk 0:04:13.5]} 19... Bd4 {[%clk 0:04:13.1]} 20. h4 {[%clk 0:04:09.2]} 20...
Nc5 {[%clk 0:04:03]} 21. Nxc5 {[%clk 0:04:07.1]} 21... Bxc5 {[%clk 0:04:00.9]}
22. Re1 {[%clk 0:04:03.4]} 22... e5 {[%clk 0:03:57.4]} 23. Bc1 {[%clk
0:03:55.9]} 23... Kf7 {[%clk 0:03:53.9]} 24. Kf1 {[%clk 0:03:50.8]} 24... a5
{[%clk 0:03:51.2]} 25. f4 {[%clk 0:03:49.1]} 25... Bd4 {[%clk 0:03:43.6]} 26.
fxe5 {[%clk 0:03:46.4]} 26... Bxe5 {[%clk 0:03:42]} 27. Be3 {[%clk 0:03:43.8]}
27... b5 {[%clk 0:03:37.5]} 28. Rc1 {[%clk 0:03:42]} 28... Rb8 {[%clk
0:03:27.6]} 29. Rc6 {[%clk 0:03:37]} 29... a4 {[%clk 0:03:22.7]} 30. Ra6 {[%clk
0:03:34.5]} 30... h5 {[%clk 0:03:17.7]} 31. Ra7+ {[%clk 0:03:29.2]} 31... Ke6
{[%clk 0:03:15.8]} 32. Bc5 {[%clk 0:03:25.6]} 32... Kf5 {[%clk 0:03:09.2]} 33.
Ke2 {[%clk 0:03:24.1]} 33... Kg4 {[%clk 0:03:06.3]} 34. Bf2 {[%clk 0:03:20.2]}
34... Bg3 {[%clk 0:03:03.5]} 35. Rd7 {[%clk 0:03:03.5]} 35... Bxf2 {[%clk
0:02:52.9]} 36. Kxf2 {[%clk 0:02:58.5]} 36... Kxh4 {[%clk 0:02:51.8]} 37. Rd5
{[%clk 0:02:51.2]} 37... f5 {[%clk 0:02:49]} 38. g3+ {[%clk 0:02:43.5]} 38...
Kg5 {[%clk 0:02:46.3]} 39. Kf3 {[%clk 0:02:41.3]} 39... b4 {[%clk 0:02:44.5]}
40. Ra5 {[%clk 0:02:37.1]} 40... b3 {[%clk 0:02:42.9]} 41. axb3 {[%clk
0:02:35.4]} 41... Rxb3+ {[%clk 0:02:39.5]} 42. Kf2 {[%clk 0:02:33.1]} 42... a3
{[%clk 0:02:38]} 0-1

[Event "Live Chess"]
[Site "Chess.com"]
[Date "2024.06.02"]
[Round "-"]
[White "ameetghasi100"]
[Black "LL220284LL"]
[Result "1-0"]
[WhiteElo "2760"]
[BlackElo "2497"]
[TimeControl "300"]
[EndTime "5:40:14 PDT"]
[Termination "ameetghasi100 won by resignation"]

1. c4 {[%clk 0:04:58.6]} 1... e6 {[%clk 0:04:58.6]} 2. e3 {[%clk 0:04:58.3]}
2... Nf6 {[%clk 0:04:56.5]} 3. Nf3 {[%clk 0:04:58.1]} 3... d5 {[%clk 0:04:55]}
4. Nc3 {[%clk 0:04:57.9]} 4... b6 {[%clk 0:04:54.1]} 5. d4 {[%clk 0:04:57.5]}
5... Bb7 {[%clk 0:04:52.8]} 6. cxd5 {[%clk 0:04:57.4]} 6... Nxd5 {[%clk
0:04:51.7]} 7. Bd3 {[%clk 0:04:57.2]} 7... Be7 {[%clk 0:04:50.7]} 8. O-O {[%clk
0:04:56.4]} 8... O-O {[%clk 0:04:50.3]} 9. e4 {[%clk 0:04:56]} 9... Nxc3 {[%clk
0:04:49.1]} 10. bxc3 {[%clk 0:04:55.8]} 10... Nd7 {[%clk 0:04:48]} 11. Qe2
{[%clk 0:04:55.4]} 11... c5 {[%clk 0:04:46.7]} 12. h4 {[%clk 0:04:55]} 12... Rc8
{[%clk 0:04:42.5]} 13. h5 {[%clk 0:04:52.8]} 13... h6 {[%clk 0:04:41.1]} 14. Bf4
{[%clk 0:04:50.4]} 14... cxd4 {[%clk 0:04:33.3]} 15. cxd4 {[%clk 0:04:49.6]}
15... e5 {[%clk 0:04:28.5]} 16. Nxe5 {[%clk 0:04:47.8]} 16... Nxe5 {[%clk
0:04:27.2]} 17. Bxe5 {[%clk 0:04:47.5]} 17... f6 {[%clk 0:04:21]} 18. Bg3 {[%clk
0:04:46.1]} 18... Qxd4 {[%clk 0:04:18.2]} 19. Rad1 {[%clk 0:04:45.8]} 19... Qc5
{[%clk 0:04:12]} 20. Qg4 {[%clk 0:04:41.7]} 20... Rc6 {[%clk 0:03:47.7]} 21. Bf4
{[%clk 0:04:34.1]} 21... Bc8 {[%clk 0:03:41.9]} 22. Qg6 {[%clk 0:04:30.3]} 22...
f5 {[%clk 0:03:29.3]} 23. Qg3 {[%clk 0:04:25.4]} 23... fxe4 {[%clk 0:02:55.3]}
24. Bxe4 {[%clk 0:04:23.7]} 24... Rcf6 {[%clk 0:02:49.5]} 25. Be5 {[%clk
0:04:18]} 25... R6f7 {[%clk 0:02:46.5]} 26. Bd5 {[%clk 0:04:16.3]} 26... Bg5
{[%clk 0:02:31.9]} 27. Bxf7+ {[%clk 0:04:09.4]} 27... Rxf7 {[%clk 0:02:31.8]}
28. Bd4 {[%clk 0:04:08.4]} 28... Qf5 {[%clk 0:02:25.5]} 29. Be3 {[%clk
0:04:05.2]} 29... Bf6 {[%clk 0:02:14.9]} 30. Rc1 {[%clk 0:03:55.3]} 30... Kh7
{[%clk 0:02:07.9]} 31. Qg6+ {[%clk 0:03:52.8]} 31... Kg8 {[%clk 0:02:02.2]} 32.
Rfd1 {[%clk 0:03:43.7]} 32... Rf8 {[%clk 0:01:57.2]} 33. Qxf5 {[%clk 0:03:39.8]}
33... Bxf5 {[%clk 0:01:55.4]} 34. f3 {[%clk 0:03:39.6]} 34... Re8 {[%clk
0:01:54]} 35. Re1 {[%clk 0:03:36.5]} 35... Rd8 {[%clk 0:01:51.3]} 36. Rcd1
{[%clk 0:03:34.5]} 36... Rc8 {[%clk 0:01:50]} 37. Bd4 {[%clk 0:03:31.2]} 37...
Bh4 {[%clk 0:01:47]} 38. Bf2 {[%clk 0:03:29.2]} 38... Bf6 {[%clk 0:01:45.7]} 39.
Rc1 {[%clk 0:03:28.5]} 39... Rd8 {[%clk 0:01:43.1]} 40. Red1 {[%clk 0:03:27.5]}
40... Re8 {[%clk 0:01:42.3]} 41. Rc7 {[%clk 0:03:26]} 41... a5 {[%clk
0:01:22.4]} 42. Rd2 {[%clk 0:03:23.1]} 42... b5 {[%clk 0:01:20.1]} 43. Bd4
{[%clk 0:03:21.9]} 43... Bg5 {[%clk 0:01:18.3]} 44. Rxg7+ {[%clk 0:03:19.6]}
44... Kf8 {[%clk 0:01:16.8]} 45. Rxg5 {[%clk 0:03:12.8]} 45... hxg5 {[%clk
0:01:15.3]} 46. h6 {[%clk 0:03:12.6]} 46... b4 {[%clk 0:01:12.2]} 47. g4 {[%clk
0:03:11.3]} 47... Bb1 {[%clk 0:01:09]} 48. Bb6 {[%clk 0:03:10.3]} 48... a4
{[%clk 0:01:05.6]} 49. Bc5+ {[%clk 0:03:09.2]} 49... Kg8 {[%clk 0:01:03.7]} 50.
Bxb4 {[%clk 0:03:08.1]} 50... Kh7 {[%clk 0:01:01.8]} 51. Rh2 {[%clk 0:03:07.5]}
51... Re3 {[%clk 0:00:53.2]} 52. Kf2 {[%clk 0:03:02.5]} 52... Rd3 {[%clk
0:00:50.8]} 53. a3 {[%clk 0:03:01.4]} 53... Ba2 {[%clk 0:00:47.5]} 54. Rh5
{[%clk 0:03:00.7]} 54... Bd5 {[%clk 0:00:45.7]} 55. Rxg5 {[%clk 0:03:00.2]}
55... Bxf3 {[%clk 0:00:41.9]} 56. Bf8 {[%clk 0:02:58.6]} 56... Bd1 {[%clk
0:00:37.1]} 57. Rf5 {[%clk 0:02:57.5]} 57... Bxg4 {[%clk 0:00:31.6]} 58. Rf4
{[%clk 0:02:56.8]} 58... Bd1 {[%clk 0:00:25.1]} 59. Rf7+ {[%clk 0:02:55.9]}
59... Kh8 {[%clk 0:00:23.8]} 60. Bg7+ {[%clk 0:02:54]} 60... Kh7 {[%clk
0:00:22.8]} 61. Bf8+ {[%clk 0:02:53.5]} 61... Kh8 {[%clk 0:00:21.5]} 62. Bb4
{[%clk 0:02:49.7]} 62... Rd8 {[%clk 0:00:17.5]} 63. Bc3+ {[%clk 0:02:46.7]}
63... Kg8 {[%clk 0:00:16.1]} 64. Rg7+ {[%clk 0:02:46.3]} 64... Kf8 {[%clk
0:00:15.6]} 65. h7 {[%clk 0:02:45.9]} 1-0

[Event "Live Chess"]
[Site "Chess.com"]
[Date "2024.06.02"]
[Round "-"]
[White "Grace6363"]
[Black "ProfPoisson"]
[Result "0-1"]
[WhiteElo "1134"]
[BlackElo "1325"]
[TimeControl "300"]
[EndTime "5:40:28 PDT"]
[Termination "ProfPoisson won by resignation"]

1. d4 {[%clk 0:04:58.7]} 1... e6 {[%clk 0:04:56.2]} 2. c4 {[%clk 0:04:56.2]}
2... f5 {[%clk 0:04:53.8]} 3. Nf3 {[%clk 0:04:51.5]} 3... Nf6 {[%clk 0:04:53.2]}
4. Bg5 {[%clk 0:04:50.6]} 4... Bb4+ {[%clk 0:04:50.9]} 5. Nc3 {[%clk 0:04:48.8]}
5... Bxc3+ {[%clk 0:04:49.5]} 6. bxc3 {[%clk 0:04:47.9]} 6... h6 {[%clk
0:04:48.6]} 7. Bxf6 {[%clk 0:04:45.1]} 7... Qxf6 {[%clk 0:04:47.2]} 8. Ne5
{[%clk 0:04:44.4]} 8... d6 {[%clk 0:04:42.7]} 9. Qa4+ {[%clk 0:04:43]} 9... Bd7
{[%clk 0:04:38.8]} 10. Nxd7 {[%clk 0:04:39.5]} 10... Nxd7 {[%clk 0:04:36.4]} 11.
e3 {[%clk 0:04:37.9]} 11... c6 {[%clk 0:04:31.1]} 12. Be2 {[%clk 0:04:36.9]}
12... O-O {[%clk 0:04:29.7]} 13. O-O-O {[%clk 0:04:33.4]} 13... Nb6 {[%clk
0:04:20.3]} 14. Qc2 {[%clk 0:04:29.2]} 14... c5 {[%clk 0:04:08.3]} 15. g4 {[%clk
0:04:26.5]} 15... f4 {[%clk 0:04:01.8]} 16. Bf3 {[%clk 0:04:23.4]} 16... fxe3
{[%clk 0:03:57.6]} 17. Bxb7 {[%clk 0:04:21.1]} 17... Rab8 {[%clk 0:03:54.3]} 18.
Be4 {[%clk 0:04:03.8]} 18... exf2 {[%clk 0:03:51]} 19. Rhf1 {[%clk 0:04:01.8]}
19... Qf4+ {[%clk 0:03:44.5]} 20. Kb1 {[%clk 0:03:55.4]} 20... Nxc4+ {[%clk
0:03:39.7]} 21. Ka1 {[%clk 0:03:36.3]} 21... Ne3 {[%clk 0:03:29.3]} 22. Rxf2
{[%clk 0:03:11.1]} 22... Nxc2+ {[%clk 0:03:26.9]} 0-1

[Event "Live Chess"]
[Site "Chess.com"]
[Date "2024.06.02"]
[Round "-"]
[White "Victor_Bondar"]
[Black "Ninifu"]
[Result "0-1"]
[WhiteElo "1457"]
[BlackElo "2014"]
[TimeControl "300"]
[EndTime "5:40:39 PDT"]
[Termination "Ninifu won by resignation"]

1. e4 {[%clk 0:04:55.6]} 1... d5 {[%clk 0:04:58.8]} 2. exd5 {[%clk 0:04:53.7]}
2... Nf6 {[%clk 0:04:58.1]} 3. Nc3 {[%clk 0:04:52.7]} 3... Nxd5 {[%clk
0:04:56.8]} 4. Nxd5 {[%clk 0:04:51.3]} 4... Qxd5 {[%clk 0:04:55.9]} 5. d4 {[%clk
0:04:48.4]} 5... Nc6 {[%clk 0:04:54.4]} 6. Be3 {[%clk 0:04:41.9]} 6... e6 {[%clk
0:04:43]} 7. c4 {[%clk 0:04:40.5]} 7... Bb4+ {[%clk 0:04:41.7]} 8. Ke2 {[%clk
0:04:30.1]} 8... Qxc4+ {[%clk 0:04:39.2]} 9. Qd3 {[%clk 0:04:26.7]} 9... Qxd3+
{[%clk 0:04:26.6]} 10. Kxd3 {[%clk 0:04:24.9]} 10... O-O {[%clk 0:04:21.9]} 11.
a3 {[%clk 0:04:24.1]} 11... Be7 {[%clk 0:04:20.7]} 12. Nf3 {[%clk 0:04:22.1]}
12... Bf6 {[%clk 0:04:19]} 13. Be2 {[%clk 0:04:12.3]} 13... b6 {[%clk
0:04:16.7]} 14. Rhd1 {[%clk 0:03:54.3]} 14... Bb7 {[%clk 0:04:15.1]} 15. g4
{[%clk 0:03:42.7]} 15... g6 {[%clk 0:04:07.8]} 16. g5 {[%clk 0:03:41.5]} 16...
Bg7 {[%clk 0:04:06.5]} 17. h4 {[%clk 0:03:31.9]} 17... Rad8 {[%clk 0:04:04.8]}
18. Kc2 {[%clk 0:03:22.6]} 18... Na5 {[%clk 0:03:53.8]} 19. Ne5 {[%clk
0:03:13.2]} 19... Bxe5 {[%clk 0:03:33.2]} 20. dxe5 {[%clk 0:03:11.2]} 20... Be4+
{[%clk 0:03:31.5]} 21. Kc3 {[%clk 0:03:02.8]} 21... c5 {[%clk 0:03:21.6]} 22. b4
{[%clk 0:02:53.4]} 22... cxb4+ {[%clk 0:03:15.1]} 23. axb4 {[%clk 0:02:50.5]}
23... Rc8+ {[%clk 0:03:14.1]} 24. Kd4 {[%clk 0:02:39.1]} 24... Bc2 {[%clk
0:02:44.4]} 25. Bd2 {[%clk 0:01:53.4]} 25... Bxd1 {[%clk 0:02:39.2]} 26. bxa5
{[%clk 0:01:49.4]} 26... Bxe2 {[%clk 0:02:35.7]} 27. axb6 {[%clk 0:01:45.2]}
27... axb6 {[%clk 0:02:34.3]} 28. Ke3 {[%clk 0:01:40.9]} 28... Bc4 {[%clk
0:02:29.7]} 29. Bb4 {[%clk 0:01:36]} 29... Rfd8 {[%clk 0:02:27.9]} 30. Bd6
{[%clk 0:01:34]} 30... Ra8 {[%clk 0:02:21.8]} 31. Rc1 {[%clk 0:01:28.5]} 31...
b5 {[%clk 0:02:20.7]} 32. Rd1 {[%clk 0:01:24.5]} 32... Ra2 {[%clk 0:02:16.8]}
33. Rd4 {[%clk 0:01:19.5]} 33... Rda8 {[%clk 0:02:14.5]} 34. Rf4 {[%clk
0:01:12.4]} 34... Rc2 {[%clk 0:01:51.4]} 35. h5 {[%clk 0:01:07.6]} 35... gxh5
{[%clk 0:01:41.1]} 36. f3 {[%clk 0:01:01.5]} 36... Ra4 {[%clk 0:01:08]} 37. Re4
{[%clk 0:00:55.8]} 37... Bd5 {[%clk 0:01:06.4]} 38. Rd4 {[%clk 0:00:50.5]} 38...
Rxd4 {[%clk 0:00:53.8]} 39. Kxd4 {[%clk 0:00:48.8]} 39... h4 {[%clk 0:00:50.4]}
40. Kd3 {[%clk 0:00:45.2]} 40... Ra2 {[%clk 0:00:46.6]} 41. Bb4 {[%clk
0:00:39.4]} 41... h3 {[%clk 0:00:44.1]} 42. Kd4 {[%clk 0:00:35.7]} 42... h2
{[%clk 0:00:40.9]} 43. g6 {[%clk 0:00:32.6]} 43... hxg6 {[%clk 0:00:38.8]} 44.
Kc5 {[%clk 0:00:29]} 44... h1=Q {[%clk 0:00:36.9]} 45. f4 {[%clk 0:00:25.6]}
45... Qc1+ {[%clk 0:00:34.7]} 46. Kd6 {[%clk 0:00:21.6]} 46... Ra6+ {[%clk
0:00:34]} 47. Ke7 {[%clk 0:00:18]} 47... Kg7 {[%clk 0:00:31.1]} 48. Bd6 {[%clk
0:00:14.2]} 48... Ra7+ {[%clk 0:00:28.2]} 49. Kd8 {[%clk 0:00:10.9]} 49... Qc6
{[%clk 0:00:24.6]} 0-1